[Event "*** SCC Grand Prix: Titled Tuesday Blitz"]
[Site "Chess.com"]
[Date "2020.09.29"]
[Round "1"]
[White "vovachesss"]
[Black "MariaFominykh"]
[Result "1-0"]
[WhiteElo "2683"]
[BlackElo "2348"]
[TimeControl "180+1"]
[EndTime "10:07:48 PDT"]
[Termination "vovachesss won on time"]

1. Nf3 {[%clk 0:02:59.9]} 1... Nf6 {[%clk 0:02:59.3]} 2. c4 {[%clk 0:02:59]}
2... g6 {[%clk 0:02:59.4]} 3. Nc3 {[%clk 0:02:58.8]} 3... Bg7 {[%clk 0:02:59.8]}
4. e4 {[%clk 0:02:59.4]} 4... d6 {[%clk 0:02:59.5]} 5. d4 {[%clk 0:02:59.2]}
5... Kf8 {[%clk 0:02:59.8]} 6. h3 {[%clk 0:02:59.8]} 6... Nc6 {[%clk 0:02:57.8]}
7. d5 {[%clk 0:02:58]} 7... Ne5 {[%clk 0:02:53.1]} 8. Nd4 {[%clk 0:02:53.6]}
8... c5 {[%clk 0:02:50.7]} 9. dxc6 {[%clk 0:02:40.8]} 9... Nxc6 {[%clk
0:02:43.8]} 10. Be3 {[%clk 0:02:41.1]} 10... Bd7 {[%clk 0:02:34.9]} 11. Be2
{[%clk 0:02:41]} 11... Rc8 {[%clk 0:02:26.5]} 12. O-O {[%clk 0:02:39.9]} 12...
h5 {[%clk 0:02:20.1]} 13. f4 {[%clk 0:02:37.5]} 13... h4 {[%clk 0:02:14.8]} 14.
Rc1 {[%clk 0:02:33.8]} 14... Nh5 {[%clk 0:02:13.6]} 15. Bxh5 {[%clk 0:02:26.6]}
15... Rxh5 {[%clk 0:02:02.9]} 16. b3 {[%clk 0:02:26]} 16... Nxd4 {[%clk
0:01:59.2]} 17. Bxd4 {[%clk 0:02:25.8]} 17... Bxd4+ {[%clk 0:01:59.2]} 18. Qxd4
{[%clk 0:02:25.7]} 18... Qb6 {[%clk 0:01:58]} 19. Qxb6 {[%clk 0:02:25.1]} 19...
axb6 {[%clk 0:01:57.9]} 20. a4 {[%clk 0:02:14.5]} 20... e6 {[%clk 0:01:49.4]}
21. Rfd1 {[%clk 0:02:10.8]} 21... Ke7 {[%clk 0:01:49.2]} 22. Rd2 {[%clk
0:02:05.2]} 22... g5 {[%clk 0:01:43.1]} 23. f5 {[%clk 0:01:51.8]} 23... d5
{[%clk 0:00:52.7]} 24. cxd5 {[%clk 0:01:43.6]} 24... exf5 {[%clk 0:00:47.7]} 25.
e5 {[%clk 0:01:41.7]} 25... b5 {[%clk 0:00:34.6]} 26. axb5 {[%clk 0:01:31.8]}
26... Bxb5 {[%clk 0:00:32.3]} 27. Rdd1 {[%clk 0:01:05.9]} 27... Bd7 {[%clk
0:00:24.7]} 28. Kf2 {[%clk 0:00:52.9]} 28... g4 {[%clk 0:00:22.9]} 29. Ke3
{[%clk 0:00:51.7]} 29... gxh3 {[%clk 0:00:18.8]} 30. gxh3 {[%clk 0:00:52.6]}
30... f4+ {[%clk 0:00:19]} 31. Kxf4 {[%clk 0:00:51.7]} 31... Bxh3 {[%clk
0:00:18.9]} 32. Nb5 {[%clk 0:00:45]} 32... Rf5+ {[%clk 0:00:15.4]} 33. Ke4
{[%clk 0:00:44.7]} 33... Rf2 {[%clk 0:00:14.9]} 34. Rxc8 {[%clk 0:00:42.4]}
34... Bxc8 {[%clk 0:00:15.8]} 35. Nd6 {[%clk 0:00:39]} 35... Bg4 {[%clk
0:00:14.3]} 36. Rc1 {[%clk 0:00:37.8]} 36... h3 {[%clk 0:00:12.6]} 37. Nxb7
{[%clk 0:00:28.1]} 37... h2 {[%clk 0:00:12.9]} 38. d6+ {[%clk 0:00:29]} 38...
Kf8 {[%clk 0:00:07.5]} 39. Ke3 {[%clk 0:00:23.9]} 39... Rc2 {[%clk 0:00:06]} 40.
Rh1 {[%clk 0:00:19.7]} 40... Rc3+ {[%clk 0:00:05.1]} 41. Kf4 {[%clk 0:00:19.1]}
41... Bf3 {[%clk 0:00:04.6]} 42. Rxh2 {[%clk 0:00:19.4]} 42... Bxb7 {[%clk
0:00:04.4]} 43. Rh7 {[%clk 0:00:13.6]} 43... Bc6 {[%clk 0:00:02.2]} 44. b4
{[%clk 0:00:11.4]} 44... Rc4+ {[%clk 0:00:01.8]} 45. Kg5 {[%clk 0:00:10.7]}
45... Rxb4 {[%clk 0:00:01.4]} 46. e6 {[%clk 0:00:07.1]} 1-0

[Event "*** SCC Grand Prix: Titled Tuesday Blitz"]
[Site "Chess.com"]
[Date "2020.09.29"]
[Round "1"]
[White "brunomorado"]
[Black "AlexOstrovskiy"]
[Result "0-1"]
[WhiteElo "2376"]
[BlackElo "2731"]
[TimeControl "180+1"]
[EndTime "10:07:49 PDT"]
[Termination "AlexOstrovskiy won by resignation"]

1. d4 {[%clk 0:03:00]} 1... Nf6 {[%clk 0:02:59.4]} 2. Nc3 {[%clk 0:03:00.9]}
2... d5 {[%clk 0:02:58.5]} 3. Bg5 {[%clk 0:02:59.4]} 3... h6 {[%clk 0:02:57.3]}
4. Bh4 {[%clk 0:02:59.5]} 4... e6 {[%clk 0:02:44.7]} 5. Bxf6 {[%clk 0:02:54.9]}
5... Qxf6 {[%clk 0:02:41.6]} 6. e4 {[%clk 0:02:55.3]} 6... Bb4 {[%clk
0:02:18.7]} 7. Ne2 {[%clk 0:02:45.2]} 7... dxe4 {[%clk 0:01:53.7]} 8. a3 {[%clk
0:02:45]} 8... Bxc3+ {[%clk 0:01:53.7]} 9. Nxc3 {[%clk 0:02:45.9]} 9... Nc6
{[%clk 0:01:52.8]} 10. Bb5 {[%clk 0:02:40.3]} 10... Qg6 {[%clk 0:01:39.5]} 11.
Qe2 {[%clk 0:02:11.7]} 11... Bd7 {[%clk 0:01:30.4]} 12. Qxe4 {[%clk 0:01:57.5]}
12... Qxe4+ {[%clk 0:01:29.6]} 13. Nxe4 {[%clk 0:01:58.4]} 13... O-O-O {[%clk
0:01:30.2]} 14. c3 {[%clk 0:01:52.7]} 14... e5 {[%clk 0:01:23.8]} 15. d5 {[%clk
0:01:33.8]} 15... Ne7 {[%clk 0:01:23]} 16. Bxd7+ {[%clk 0:01:33.4]} 16... Rxd7
{[%clk 0:01:23.9]} 17. c4 {[%clk 0:01:33.4]} 17... c6 {[%clk 0:01:23.9]} 18. d6
{[%clk 0:01:29.9]} 18... f5 {[%clk 0:01:03.2]} 19. O-O-O {[%clk 0:00:49.5]}
19... fxe4 {[%clk 0:00:55.4]} 20. dxe7 {[%clk 0:00:46.6]} 20... Rxe7 {[%clk
0:00:56.3]} 21. Rhe1 {[%clk 0:00:44.9]} 21... Rf8 {[%clk 0:00:52.7]} 22. Rd2
{[%clk 0:00:45]} 22... Rd7 {[%clk 0:00:44.6]} 23. Rxd7 {[%clk 0:00:35.8]} 23...
Kxd7 {[%clk 0:00:44.7]} 24. Re2 {[%clk 0:00:33.4]} 24... Ke6 {[%clk 0:00:41.8]}
25. Kd2 {[%clk 0:00:33.5]} 25... Rd8+ {[%clk 0:00:33.5]} 26. Ke3 {[%clk
0:00:33.9]} 26... Rd4 {[%clk 0:00:34.4]} 27. c5 {[%clk 0:00:33.3]} 27... a5
{[%clk 0:00:29.8]} 28. Rd2 {[%clk 0:00:30.2]} 28... Kd5 {[%clk 0:00:28.6]} 29.
Rc2 {[%clk 0:00:28.5]} 29... g5 {[%clk 0:00:21.2]} 30. h3 {[%clk 0:00:24.2]}
30... h5 {[%clk 0:00:19.7]} 31. g3 {[%clk 0:00:19.8]} 31... a4 {[%clk
0:00:19.5]} 32. Ke2 {[%clk 0:00:15.1]} 32... h4 {[%clk 0:00:18.1]} 33. gxh4
{[%clk 0:00:14.1]} 33... gxh4 {[%clk 0:00:19]} 34. Rc3 {[%clk 0:00:15]} 34...
Rc4 {[%clk 0:00:14.5]} 35. Kd2 {[%clk 0:00:11.7]} 35... Kxc5 {[%clk 0:00:12.6]}
36. Re3 {[%clk 0:00:11.2]} 36... Kd4 {[%clk 0:00:12.6]} 37. f3 {[%clk 0:00:09]}
37... exf3 {[%clk 0:00:11.6]} 38. Rxf3 {[%clk 0:00:09.9]} 38... Kd5 {[%clk
0:00:12]} 39. Rf8 {[%clk 0:00:09.2]} 39... b5 {[%clk 0:00:11.9]} 40. Rd8+ {[%clk
0:00:08.9]} 40... Kc5 {[%clk 0:00:12.4]} 41. Re8 {[%clk 0:00:08.7]} 41... Re4
{[%clk 0:00:09.8]} 42. Rh8 {[%clk 0:00:07.6]} 42... Kc4 {[%clk 0:00:08]} 43. Rh5
{[%clk 0:00:07.2]} 43... Kb3 {[%clk 0:00:07.4]} 44. Rh6 {[%clk 0:00:07]} 44...
Rc4 {[%clk 0:00:06.4]} 45. Re6 {[%clk 0:00:06.2]} 45... Kxb2 {[%clk 0:00:06.8]}
46. Rxe5 {[%clk 0:00:06]} 46... Kxa3 {[%clk 0:00:07.3]} 0-1

[Event "*** SCC Grand Prix: Titled Tuesday Blitz"]
[Site "Chess.com"]
[Date "2020.09.29"]
[Round "1"]
[White "davigator"]
[Black "Violord"]
[Result "0-1"]
[WhiteElo "2351"]
[BlackElo "2689"]
[TimeControl "180+1"]
[EndTime "10:07:49 PDT"]
[Termination "Violord won by resignation"]

1. e4 {[%clk 0:02:59.7]} 1... c6 {[%clk 0:02:57.8]} 2. d4 {[%clk 0:02:58.1]}
2... d5 {[%clk 0:02:57.8]} 3. e5 {[%clk 0:02:56.7]} 3... Bf5 {[%clk 0:02:56.8]}
4. h4 {[%clk 0:02:55.3]} 4... h6 {[%clk 0:02:55.4]} 5. g4 {[%clk 0:02:53.2]}
5... Bd7 {[%clk 0:02:54.6]} 6. c3 {[%clk 0:02:51]} 6... c5 {[%clk 0:02:53.1]} 7.
Be3 {[%clk 0:02:46.1]} 7... Qb6 {[%clk 0:02:42.6]} 8. b3 {[%clk 0:02:39.7]} 8...
e6 {[%clk 0:02:36.5]} 9. f4 {[%clk 0:02:31]} 9... h5 {[%clk 0:02:26.3]} 10. gxh5
{[%clk 0:02:27.2]} 10... Nh6 {[%clk 0:02:25.4]} 11. Bd3 {[%clk 0:02:24.9]} 11...
Nc6 {[%clk 0:02:19.3]} 12. Nf3 {[%clk 0:02:21.6]} 12... cxd4 {[%clk 0:02:17.7]}
13. cxd4 {[%clk 0:02:20.1]} 13... Bb4+ {[%clk 0:02:15.9]} 14. Kf1 {[%clk
0:02:19.8]} 14... Rc8 {[%clk 0:02:05.2]} 15. a3 {[%clk 0:02:19]} 15... Be7
{[%clk 0:02:01.1]} 16. b4 {[%clk 0:02:18.5]} 16... a6 {[%clk 0:01:53.5]} 17.
Nbd2 {[%clk 0:02:14.7]} 17... Na7 {[%clk 0:01:50.6]} 18. Nb3 {[%clk 0:02:11.2]}
18... Bb5 {[%clk 0:01:48.6]} 19. Nc5 {[%clk 0:02:09.8]} 19... Nf5 {[%clk
0:01:46.2]} 20. Bf2 {[%clk 0:02:07.5]} 20... Qc6 {[%clk 0:01:38.9]} 21. a4
{[%clk 0:01:45]} 21... Bxd3+ {[%clk 0:01:36.4]} 22. Qxd3 {[%clk 0:01:45.6]}
22... Rxh5 {[%clk 0:01:35.5]} 23. Kg2 {[%clk 0:01:42.1]} 23... Bxc5 {[%clk
0:01:10.7]} 24. bxc5 {[%clk 0:01:39.8]} 24... Qd7 {[%clk 0:01:08.6]} 25. Ng5
{[%clk 0:01:37.1]} 25... Nc6 {[%clk 0:01:06.7]} 26. Rad1 {[%clk 0:01:30.9]}
26... f6 {[%clk 0:01:04.1]} 27. Nf3 {[%clk 0:01:29.5]} 27... Kf7 {[%clk
0:01:02.4]} 28. Rb1 {[%clk 0:01:25.8]} 28... Rh6 {[%clk 0:00:59.8]} 29. Rb6
{[%clk 0:01:23.8]} 29... Rc7 {[%clk 0:00:54.8]} 30. Rhb1 {[%clk 0:01:22.6]}
30... Kg8 {[%clk 0:00:51.3]} 31. Qb3 {[%clk 0:01:18.7]} 31... Qf7 {[%clk
0:00:50.6]} 32. Rxb7 {[%clk 0:01:14]} 32... Qg6+ {[%clk 0:00:48]} 33. Kf1 {[%clk
0:01:13.4]} 33... Rc8 {[%clk 0:00:33.6]} 34. Ke2 {[%clk 0:01:06]} 34... Qg2
{[%clk 0:00:29.9]} 35. Rg1 {[%clk 0:01:01.7]} 35... Ncxd4+ {[%clk 0:00:26.5]}
36. Nxd4 {[%clk 0:00:49.2]} 36... Nxd4+ {[%clk 0:00:26.3]} 37. Kd1 {[%clk
0:00:47.2]} 37... Qxg1+ {[%clk 0:00:25.5]} 38. Bxg1 {[%clk 0:00:45.8]} 38...
Nxb3 {[%clk 0:00:26.2]} 39. Rxb3 {[%clk 0:00:45.6]} 39... fxe5 {[%clk
0:00:25.5]} 40. fxe5 {[%clk 0:00:44.6]} 40... Rxh4 {[%clk 0:00:26.1]} 41. Rb6
{[%clk 0:00:41.4]} 41... Rxa4 {[%clk 0:00:25.5]} 42. Kc2 {[%clk 0:00:38.7]}
42... Kf7 {[%clk 0:00:24.9]} 43. Kb3 {[%clk 0:00:36]} 43... Ra1 {[%clk
0:00:24.5]} 44. Bd4 {[%clk 0:00:35.7]} 44... Rd1 {[%clk 0:00:24.7]} 45. Kc3
{[%clk 0:00:34.9]} 45... a5 {[%clk 0:00:22.5]} 46. Ra6 {[%clk 0:00:34.7]} 46...
Rh8 {[%clk 0:00:22.2]} 47. Ra7+ {[%clk 0:00:33.3]} 47... Kg6 {[%clk 0:00:22]}
48. Re7 {[%clk 0:00:33.6]} 48... Rh3+ {[%clk 0:00:21.1]} 49. Kc2 {[%clk
0:00:30.4]} 49... Rxd4 {[%clk 0:00:21.7]} 50. Rxe6+ {[%clk 0:00:30.9]} 50... Kf5
{[%clk 0:00:21.8]} 51. Re7 {[%clk 0:00:25.7]} 51... Rc4+ {[%clk 0:00:22.3]} 52.
Kd2 {[%clk 0:00:25.1]} 52... d4 {[%clk 0:00:22.8]} 53. Rxg7 {[%clk 0:00:23.7]}
53... d3 {[%clk 0:00:22.4]} 54. Rg1 {[%clk 0:00:20.9]} 54... Rc2+ {[%clk
0:00:21.7]} 55. Kd1 {[%clk 0:00:21.3]} 55... Rhh2 {[%clk 0:00:21.9]} 56. Rf1+
{[%clk 0:00:21.3]} 56... Kxe5 {[%clk 0:00:21.3]} 57. c6 {[%clk 0:00:21.6]} 57...
Kd6 {[%clk 0:00:20.8]} 58. c7 {[%clk 0:00:20.3]} 58... Kxc7 {[%clk 0:00:20.4]}
0-1

[Event "*** SCC Grand Prix: Titled Tuesday Blitz"]
[Site "Chess.com"]
[Date "2020.09.29"]
[Round "1"]
[White "ORS1984"]
[Black "shineatchess"]
[Result "1/2-1/2"]
[WhiteElo "2527"]
[BlackElo "2215"]
[TimeControl "180+1"]
[EndTime "10:07:49 PDT"]
[Termination "Game drawn by repetition"]

1. e4 {[%clk 0:02:52.2]} 1... Nf6 {[%clk 0:02:58.4]} 2. e5 {[%clk 0:02:48.1]}
2... Nd5 {[%clk 0:02:58.1]} 3. d4 {[%clk 0:02:47]} 3... d6 {[%clk 0:02:57.8]} 4.
Bc4 {[%clk 0:02:46.8]} 4... c6 {[%clk 0:02:50.3]} 5. Qe2 {[%clk 0:02:42.3]} 5...
g6 {[%clk 0:02:31.2]} 6. Nf3 {[%clk 0:02:36.9]} 6... Bg7 {[%clk 0:02:30.5]} 7.
O-O {[%clk 0:02:36.2]} 7... O-O {[%clk 0:02:29.8]} 8. Re1 {[%clk 0:02:33.7]}
8... Bg4 {[%clk 0:02:18.1]} 9. h3 {[%clk 0:02:28.6]} 9... Bxf3 {[%clk
0:02:17.8]} 10. Qxf3 {[%clk 0:02:29.2]} 10... dxe5 {[%clk 0:02:17.5]} 11. dxe5
{[%clk 0:02:28.2]} 11... e6 {[%clk 0:02:17.2]} 12. Nd2 {[%clk 0:02:11.8]} 12...
Nd7 {[%clk 0:02:13.9]} 13. Qg3 {[%clk 0:02:08.2]} 13... Qc7 {[%clk 0:01:47.5]}
14. Nf3 {[%clk 0:02:07.7]} 14... b5 {[%clk 0:01:27.9]} 15. Bf1 {[%clk
0:01:52.2]} 15... N7b6 {[%clk 0:01:18.1]} 16. c3 {[%clk 0:01:38.5]} 16... Na4
{[%clk 0:01:13.6]} 17. h4 {[%clk 0:01:32.9]} 17... h5 {[%clk 0:01:10.6]} 18. Bd3
{[%clk 0:01:26.6]} 18... Ne7 {[%clk 0:01:02.3]} 19. Bg5 {[%clk 0:01:13]} 19...
Nxb2 {[%clk 0:00:54.7]} 20. Bc2 {[%clk 0:01:10.3]} 20... Nf5 {[%clk 0:00:50.2]}
21. Qf4 {[%clk 0:01:10.3]} 21... Nc4 {[%clk 0:00:35.2]} 22. g4 {[%clk 0:01:10]}
22... hxg4 {[%clk 0:00:30.5]} 23. Qxg4 {[%clk 0:01:09.8]} 23... Nxe5 {[%clk
0:00:23.3]} 24. Nxe5 {[%clk 0:01:09.7]} 24... Bxe5 {[%clk 0:00:23.2]} 25. h5
{[%clk 0:00:57.4]} 25... Kg7 {[%clk 0:00:20.4]} 26. hxg6 {[%clk 0:00:50]} 26...
fxg6 {[%clk 0:00:19.2]} 27. Re2 {[%clk 0:00:31.2]} 27... Rh8 {[%clk 0:00:18.8]}
28. f4 {[%clk 0:00:21.9]} 28... Bxc3 {[%clk 0:00:17.9]} 29. Rf1 {[%clk
0:00:18.9]} 29... Bd4+ {[%clk 0:00:17.8]} 30. Kg2 {[%clk 0:00:18.2]} 30... c5
{[%clk 0:00:18]} 31. Rxe6 {[%clk 0:00:17.8]} 31... Qb7+ {[%clk 0:00:17.5]} 32.
Be4 {[%clk 0:00:17.1]} 32... Ne3+ {[%clk 0:00:16.6]} 33. Kf3 {[%clk 0:00:14.8]}
33... Nxg4 {[%clk 0:00:16.2]} 34. Bxb7 {[%clk 0:00:13.9]} 34... Nh2+ {[%clk
0:00:16.4]} 35. Kg2 {[%clk 0:00:13.4]} 35... Nxf1 {[%clk 0:00:16.3]} 36. Kxf1
{[%clk 0:00:14]} 36... Rab8 {[%clk 0:00:15.4]} 37. Bc6 {[%clk 0:00:13.5]} 37...
Rbc8 {[%clk 0:00:14.2]} 38. Re7+ {[%clk 0:00:12.7]} 38... Kf8 {[%clk 0:00:13.5]}
39. Bd5 {[%clk 0:00:12.8]} 39... c4 {[%clk 0:00:10.6]} 40. Rf7+ {[%clk
0:00:12.6]} 40... Ke8 {[%clk 0:00:10.5]} 41. Re7+ {[%clk 0:00:12.8]} 41... Kf8
{[%clk 0:00:10.8]} 42. Rf7+ {[%clk 0:00:12.8]} 42... Ke8 {[%clk 0:00:11.1]} 43.
Re7+ {[%clk 0:00:12.9]} 43... Kf8 {[%clk 0:00:11.4]} 1/2-1/2

[Event "*** SCC Grand Prix: Titled Tuesday Blitz"]
[Site "Chess.com"]
[Date "2020.09.29"]
[Round "1"]
[White "UmarovSabir"]
[Black "alexrustemov"]
[Result "0-1"]
[WhiteElo "2376"]
[BlackElo "2735"]
[TimeControl "180+1"]
[EndTime "10:07:50 PDT"]
[Termination "alexrustemov won by resignation"]

1. e4 {[%clk 0:02:57.5]} 1... e6 {[%clk 0:02:59.7]} 2. d4 {[%clk 0:02:53.3]}
2... d5 {[%clk 0:03:00]} 3. Nd2 {[%clk 0:02:39.8]} 3... dxe4 {[%clk 0:02:54.3]}
4. Nxe4 {[%clk 0:02:38.4]} 4... Bd7 {[%clk 0:02:54.8]} 5. Nf3 {[%clk 0:02:21.1]}
5... Bc6 {[%clk 0:02:54.6]} 6. Bd3 {[%clk 0:02:17.2]} 6... Nd7 {[%clk 0:02:55]}
7. O-O {[%clk 0:02:15.1]} 7... Ngf6 {[%clk 0:02:55.4]} 8. Re1 {[%clk 0:02:02.1]}
8... Nxe4 {[%clk 0:02:53.8]} 9. Bxe4 {[%clk 0:02:01.4]} 9... Bxe4 {[%clk
0:02:54.4]} 10. Rxe4 {[%clk 0:02:00.9]} 10... c6 {[%clk 0:02:54.2]} 11. Bg5
{[%clk 0:01:52.8]} 11... Be7 {[%clk 0:02:53.7]} 12. Bxe7 {[%clk 0:01:46.4]}
12... Qxe7 {[%clk 0:02:54.6]} 13. Ne5 {[%clk 0:01:39.7]} 13... O-O {[%clk
0:02:52.2]} 14. Nxd7 {[%clk 0:01:37.6]} 14... Qxd7 {[%clk 0:02:53.1]} 15. c3
{[%clk 0:01:34.9]} 15... Rfd8 {[%clk 0:02:50.7]} 16. Qe2 {[%clk 0:01:19.5]}
16... Qe7 {[%clk 0:02:28.1]} 17. Re1 {[%clk 0:01:18.2]} 17... Rd5 {[%clk
0:02:20.5]} 18. h3 {[%clk 0:01:13]} 18... Rad8 {[%clk 0:02:19.7]} 19. Re5 {[%clk
0:00:59.8]} 19... g6 {[%clk 0:02:15.6]} 20. Qf3 {[%clk 0:00:55.3]} 20... Kg7
{[%clk 0:02:14.2]} 21. Qg3 {[%clk 0:00:53.7]} 21... Qf6 {[%clk 0:02:06.3]} 22.
Qe3 {[%clk 0:00:47.4]} 22... a6 {[%clk 0:01:58.8]} 23. Qg3 {[%clk 0:00:45.7]}
23... R8d7 {[%clk 0:01:58.3]} 24. Qe3 {[%clk 0:00:45.5]} 24... Qh4 {[%clk
0:01:47.2]} 25. Kf1 {[%clk 0:00:44]} 25... h6 {[%clk 0:01:37.9]} 26. Kg1 {[%clk
0:00:43.8]} 26... b5 {[%clk 0:01:33.4]} 27. Re4 {[%clk 0:00:43.6]} 27... Qf6
{[%clk 0:01:32.4]} 28. b4 {[%clk 0:00:43.5]} 28... a5 {[%clk 0:01:31.2]} 29. a3
{[%clk 0:00:43.3]} 29... axb4 {[%clk 0:01:30.6]} 30. axb4 {[%clk 0:00:43.4]}
30... Ra7 {[%clk 0:01:31.2]} 31. Rf4 {[%clk 0:00:42.4]} 31... Qe7 {[%clk
0:01:27.8]} 32. Qf3 {[%clk 0:00:41.3]} 32... Ra3 {[%clk 0:01:26.3]} 33. Re3
{[%clk 0:00:38.4]} 33... g5 {[%clk 0:01:20.2]} 34. Rfe4 {[%clk 0:00:37.7]} 34...
Qf6 {[%clk 0:01:19.4]} 35. Qxf6+ {[%clk 0:00:35.3]} 35... Kxf6 {[%clk
0:01:20.3]} 36. g4 {[%clk 0:00:26.6]} 36... Ke7 {[%clk 0:01:18.3]} 37. Kg2
{[%clk 0:00:26.4]} 37... Kd6 {[%clk 0:01:17.8]} 38. Kg3 {[%clk 0:00:26.1]} 38...
Ra1 {[%clk 0:01:16.4]} 39. f4 {[%clk 0:00:24.9]} 39... Rf1 {[%clk 0:01:09.4]}
40. Rf3 {[%clk 0:00:21.2]} 40... Rxf3+ {[%clk 0:01:00.9]} 41. Kxf3 {[%clk
0:00:22.1]} 41... f6 {[%clk 0:01:01]} 42. Re1 {[%clk 0:00:20.1]} 42... gxf4
{[%clk 0:00:57.7]} 43. Kxf4 {[%clk 0:00:20]} 43... h5 {[%clk 0:00:58.5]} 44.
gxh5 {[%clk 0:00:18.9]} 44... Rxh5 {[%clk 0:00:57.9]} 45. Kg4 {[%clk 0:00:19.1]}
45... Rg5+ {[%clk 0:00:58]} 46. Kf4 {[%clk 0:00:18.7]} 46... Rh5 {[%clk
0:00:54.9]} 47. Kg4 {[%clk 0:00:18.2]} 47... Rh8 {[%clk 0:00:55.5]} 48. h4
{[%clk 0:00:18.4]} 48... Rg8+ {[%clk 0:00:55]} 49. Kf4 {[%clk 0:00:18.4]} 49...
f5 {[%clk 0:00:52.1]} 50. h5 {[%clk 0:00:17.9]} 50... Rg4+ {[%clk 0:00:49.1]}
51. Kf3 {[%clk 0:00:17.5]} 51... Rh4 {[%clk 0:00:49.7]} 52. Rg1 {[%clk
0:00:15.4]} 52... Rxh5 {[%clk 0:00:49]} 53. Rg3 {[%clk 0:00:15.7]} 53... Kd5
{[%clk 0:00:48.3]} 54. Kf4 {[%clk 0:00:15.1]} 54... Rh4+ {[%clk 0:00:47.7]} 55.
Kg5 {[%clk 0:00:15.3]} 55... Rg4+ {[%clk 0:00:45.9]} 56. Rxg4 {[%clk 0:00:15.4]}
56... fxg4 {[%clk 0:00:46.6]} 57. Kxg4 {[%clk 0:00:16.3]} 57... Kc4 {[%clk
0:00:47.4]} 58. Kf4 {[%clk 0:00:17.2]} 58... Kxc3 {[%clk 0:00:47.6]} 59. Ke5
{[%clk 0:00:17.8]} 59... Kc4 {[%clk 0:00:40.9]} 0-1

[Event "*** SCC Grand Prix: Titled Tuesday Blitz"]
[Site "Chess.com"]
[Date "2020.09.29"]
[Round "1"]
[White "Gordima"]
[Black "guillembaches"]
[Result "1-0"]
[WhiteElo "2853"]
[BlackElo "2423"]
[TimeControl "180+1"]
[EndTime "10:07:52 PDT"]
[Termination "Gordima won on time"]

1. Nf3 {[%clk 0:02:56.3]} 1... d5 {[%clk 0:02:59.6]} 2. b3 {[%clk 0:02:56.4]}
2... Nf6 {[%clk 0:02:57]} 3. Bb2 {[%clk 0:02:56.4]} 3... e6 {[%clk 0:02:57.1]}
4. g3 {[%clk 0:02:54.9]} 4... Be7 {[%clk 0:02:56.6]} 5. c4 {[%clk 0:02:54.3]}
5... O-O {[%clk 0:02:56.7]} 6. Bg2 {[%clk 0:02:54.9]} 6... b6 {[%clk 0:02:56.4]}
7. O-O {[%clk 0:02:53.7]} 7... Bb7 {[%clk 0:02:55.2]} 8. e3 {[%clk 0:02:53.8]}
8... c5 {[%clk 0:02:54.9]} 9. Nc3 {[%clk 0:02:52.7]} 9... Nc6 {[%clk 0:02:50.3]}
10. cxd5 {[%clk 0:02:52.8]} 10... exd5 {[%clk 0:02:40.4]} 11. d4 {[%clk
0:02:51.7]} 11... Rc8 {[%clk 0:02:34.3]} 12. Bh3 {[%clk 0:02:44.5]} 12... Ra8
{[%clk 0:02:31.9]} 13. Qe2 {[%clk 0:02:42.8]} 13... Re8 {[%clk 0:02:30.6]} 14.
Rfd1 {[%clk 0:02:40.5]} 14... Bf8 {[%clk 0:02:24.8]} 15. dxc5 {[%clk 0:02:22.3]}
15... bxc5 {[%clk 0:02:24]} 16. Qf1 {[%clk 0:02:15.9]} 16... Qb6 {[%clk
0:01:43.2]} 17. Rac1 {[%clk 0:02:11.7]} 17... Rad8 {[%clk 0:01:41.6]} 18. Na4
{[%clk 0:02:10]} 18... Qb4 {[%clk 0:01:34.1]} 19. Bc3 {[%clk 0:02:02.8]} 19...
Qa3 {[%clk 0:01:25.7]} 20. Bxf6 {[%clk 0:02:02.7]} 20... gxf6 {[%clk 0:01:24.9]}
21. Qb5 {[%clk 0:02:00.4]} 21... Ba8 {[%clk 0:00:50.6]} 22. Bg2 {[%clk
0:01:53.9]} 22... Rb8 {[%clk 0:00:36.4]} 23. Qe2 {[%clk 0:01:52.8]} 23... c4
{[%clk 0:00:36.5]} 24. Nh4 {[%clk 0:01:47.7]} 24... cxb3 {[%clk 0:00:27.3]} 25.
axb3 {[%clk 0:01:44.8]} 25... Qxb3 {[%clk 0:00:27.3]} 26. Nc5 {[%clk 0:01:36.9]}
26... Qb5 {[%clk 0:00:23.3]} 27. Qg4+ {[%clk 0:01:28.7]} 27... Kh8 {[%clk
0:00:23.1]} 28. Nf5 {[%clk 0:00:51.4]} 28... Ne5 {[%clk 0:00:22.9]} 29. Qh4
{[%clk 0:00:51.5]} 29... Rb6 {[%clk 0:00:22.8]} 30. f4 {[%clk 0:00:29.1]} 30...
Ng6 {[%clk 0:00:20.5]} 31. Qg4 {[%clk 0:00:22.7]} 31... Bxc5 {[%clk 0:00:20.4]}
32. h4 {[%clk 0:00:23.2]} 32... Bf8 {[%clk 0:00:19.7]} 33. h5 {[%clk 0:00:22.8]}
33... Ne7 {[%clk 0:00:19.9]} 34. Nd4 {[%clk 0:00:23]} 34... Qb4 {[%clk
0:00:17.3]} 35. Rc7 {[%clk 0:00:20.9]} 35... Qd6 {[%clk 0:00:16.5]} 36. Rxa7
{[%clk 0:00:20.3]} 36... f5 {[%clk 0:00:14.6]} 37. Nxf5 {[%clk 0:00:16.6]} 37...
Qe6 {[%clk 0:00:12.5]} 38. e4 {[%clk 0:00:04.4]} 38... dxe4 {[%clk 0:00:11.2]}
39. Rxe7 {[%clk 0:00:05]} 39... Rxe7 {[%clk 0:00:08.5]} 40. Bh3 {[%clk
0:00:01.3]} 40... Qf6 {[%clk 0:00:07.5]} 41. Rd8 {[%clk 0:00:01.3]} 1-0